[Event "Latvijas 2022. gada jauniešu čempionāta fināls"]
[Site "Riga, Latvia"]
[Date "2022.06.16"]
[Round "9.23"]
[White "Stinka, Gustavs"]
[Black "Mierins, Emils Janis"]
[Result "0-1"]
[TimeControl "3600+30"]
[WhiteElo "1086"]
[BlackElo "2016"]

1. e4 {[%clk 01:00:59]} c5 {[%clk 01:00:24]} {[%emt 00:00:35]} 2. c3 {[%clk
01:01:25]} {[%emt 00:00:05]} d5 {[%clk 01:00:47]} {[%emt 00:00:06]} 3. exd5
{[%clk 01:01:44]} {[%emt 00:00:12]} Qxd5 {[%clk 01:01:11]} {[%emt 00:00:05]} 4.
Qf3 {[%clk 01:01:54]} {[%emt 00:00:21]} Nf6 {[%clk 01:00:19]} {[%emt 00:01:21]}
5. Qxd5 {[%clk 01:01:57]} {[%emt 00:00:28]} Nxd5 {[%clk 01:00:43]} {[%emt
00:00:05]} 6. Bc4 {[%clk 01:02:07]} {[%emt 00:00:20]} Nc7 {[%clk 01:00:43]}
{[%emt 00:00:29]} 7. Nf3 {[%clk 01:01:50]} {[%emt 00:00:49]} Nc6 {[%clk
01:01:02]} {[%emt 00:00:11]} 8. O-O {[%clk 01:01:51]} {[%emt 00:00:29]} Bg4
{[%clk 00:58:40]} {[%emt 00:02:51]} 9. Ng5 {[%clk 01:01:37]} {[%emt 00:00:44]}
e6 {[%clk 00:57:53]} {[%emt 00:01:18]} 10. Re1 {[%clk 01:01:42]} {[%emt
00:00:24]} Be7 {[%clk 00:57:13]} {[%emt 00:01:10]} 11. d3 {[%clk 01:01:37]}
{[%emt 00:00:36]} O-O {[%clk 00:56:50]} {[%emt 00:00:53]} 12. h3 {[%clk
01:01:41]} {[%emt 00:00:26]} Bf5 {[%clk 00:57:07]} {[%emt 00:00:12]} 13. Bf4
{[%clk 01:01:49]} {[%emt 00:00:21]} Nd5 {[%clk 00:57:11]} {[%emt 00:00:27]} 14.
Bxd5 {[%clk 01:01:57]} {[%emt 00:00:23]} exd5 {[%clk 00:57:35]} {[%emt
00:00:05]} 15. d4 {[%clk 01:02:07]} {[%emt 00:00:21]} cxd4 {[%clk 00:57:50]}
{[%emt 00:00:16]} 16. cxd4 {[%clk 01:02:31]} {[%emt 00:00:06]} Bf6 {[%clk
00:57:00]} {[%emt 00:01:20]} 17. Nf3 {[%clk 01:02:31]} {[%emt 00:00:29]} Bxd4
{[%clk 00:56:14]} {[%emt 00:01:15]} 18. Nc3 {[%clk 01:02:06]} {[%emt 00:00:56]}
Bxc3 {[%clk 00:53:39]} {[%emt 00:03:05]} 19. bxc3 {[%clk 01:02:27]} {[%emt
00:00:10]} Rac8 {[%clk 00:52:48]} {[%emt 00:01:20]} 20. Rad1 {[%clk 01:02:41]}
{[%emt 00:00:16]} Rfd8 {[%clk 00:52:34]} {[%emt 00:00:44]} 21. Nd4 {[%clk
01:02:33]} {[%emt 00:00:38]} Nxd4 {[%clk 00:51:32]} {[%emt 00:01:32]} 22. cxd4
{[%clk 01:02:41]} {[%emt 00:00:22]} Be6 {[%clk 00:51:30]} {[%emt 00:00:32]} 23.
Rb1 {[%clk 01:02:59]} {[%emt 00:00:11]} b6 {[%clk 00:51:48]} {[%emt 00:00:12]}
24. Rb2 {[%clk 01:02:06]} {[%emt 00:01:24]} Rc4 {[%clk 00:50:33]} {[%emt
00:01:45]} 25. Be3 {[%clk 01:02:14]} {[%emt 00:00:22]} Rdc8 {[%clk 00:50:55]}
{[%emt 00:00:08]} 26. Kh2 {[%clk 01:02:23]} {[%emt 00:00:21]} Kf8 {[%clk
00:50:37]} {[%emt 00:00:48]} 27. Ra1 {[%clk 01:02:25]} {[%emt 00:00:27]} Ra4
{[%clk 00:50:58]} {[%emt 00:00:09]} 28. Rb3 {[%clk 01:01:46]} {[%emt 00:01:09]}
Ke7 {[%clk 00:50:57]} {[%emt 00:00:31]} 29. a3 {[%clk 01:02:07]} {[%emt
00:00:09]} Rcc4 {[%clk 00:51:19]} {[%emt 00:00:08]} 30. Rd3 {[%clk 01:02:08]}
{[%emt 00:00:25]} Bf5 {[%clk 00:50:28]} {[%emt 00:01:26]} 31. Rb3 {[%clk
01:02:18]} {[%emt 00:00:18]} Kd7 {[%clk 00:50:45]} {[%emt 00:00:15]} 32. Rc1
{[%clk 01:00:43]} {[%emt 00:02:06]} Be6 {[%clk 00:49:28]} {[%emt 00:01:46]} 33.
g4 {[%clk 01:00:07]} {[%emt 00:01:06]} f6 {[%clk 00:47:07]} {[%emt 00:02:51]}
34. Rd1 {[%clk 00:59:21]} {[%emt 00:01:15]} Rc2 {[%clk 00:47:01]} {[%emt
00:00:36]} 35. Bc1 {[%clk 00:59:08]} {[%emt 00:00:43]} Rxf2+ {[%clk 00:47:16]}
{[%emt 00:00:15]} 36. Kg3 {[%clk 00:59:32]} {[%emt 00:00:06]} Re2 {[%clk
00:46:47]} {[%emt 00:00:59]} 37. Bf4 {[%clk 00:59:44]} {[%emt 00:00:18]} g5
{[%emt 00:03:20]} 38. Be3 {[%clk 00:59:55]} {[%emt 00:00:05]} Rc4 {[%clk
00:44:27]} {[%emt 00:00:14]} 39. Rf1 {[%clk 01:00:10]} {[%emt 00:00:16]} Ke7
{[%clk 00:44:18]} {[%emt 00:00:39]} 40. a4 {[%clk 01:00:23]} {[%emt 00:00:18]}
Ra2 {[%clk 00:42:28]} {[%emt 00:02:20]} 41. Bg1 {[%clk 00:59:23]} {[%emt
00:01:28]} Rcc2 {[%clk 00:41:06]} {[%emt 00:01:54]} 42. Re3 {[%clk 00:59:17]}
{[%emt 00:00:32]} Rxa4 {[%clk 00:41:16]} {[%emt 00:00:24]} 43. Ref3 {[%clk
00:59:21]} {[%emt 00:00:25]} Raa2 {[%clk 00:41:32]} {[%emt 00:00:15]} 44. Rxf6
{[%clk 00:59:38]} {[%emt 00:00:13]} Rg2+ {[%clk 00:41:58]} {[%emt 00:00:03]} 45.
Kf3 {[%clk 00:59:53]} {[%emt 00:00:15]} Kxf6 {[%clk 00:42:21]} {[%emt
00:00:08]} 46. Ke3+ {[%clk 01:00:16]} {[%emt 00:00:06]} Ke7 {[%clk 00:42:40]}
{[%emt 00:00:10]} 47. Bf2 {[%clk 01:00:39]} {[%emt 00:00:08]} Rgxf2 {[%clk
00:43:04]} {[%emt 00:00:06]} 48. Rxf2 {[%clk 01:00:59]} {[%emt 00:00:11]} Rxf2
{[%clk 00:43:29]} {[%emt 00:00:04]} 49. Kxf2 {[%clk 01:01:22]} {[%emt
00:00:07]} b5 {[%clk 00:43:55]} {[%emt 00:00:04]} 50. Ke3 {[%clk 01:01:47]}
{[%emt 00:00:06]} a5 {[%clk 00:44:15]} {[%emt 00:00:10]} 51. Kd3 {[%clk
01:02:12]} {[%emt 00:00:04]} Kd6 {[%clk 00:44:37]} {[%emt 00:00:08]} 52. Kc3
{[%clk 01:02:36]} {[%emt 00:00:06]} Kc6 {[%clk 00:45:02]} {[%emt 00:00:06]} 53.
Kb3 {[%clk 01:02:54]} {[%emt 00:00:12]} b4 {[%clk 00:45:24]} {[%emt 00:00:08]}
54. Ka4 {[%clk 01:03:19]} {[%emt 00:00:05]} Kb6 {[%clk 00:45:50]} {[%emt
00:00:03]} 55. Kb3 {[%clk 01:03:42]} {[%emt 00:00:08]} Kb5 {[%clk 00:46:15]}
{[%emt 00:00:05]} 56. Kb2 {[%clk 01:04:05]} {[%emt 00:00:07]} a4 {[%clk
00:46:35]} {[%emt 00:00:10]} 57. Kc2 {[%clk 01:04:28]} {[%emt 00:00:07]} Kc4
{[%clk 00:47:01]} {[%emt 00:00:03]} 58. Kb2 {[%clk 01:04:50]} {[%emt 00:00:09]}
Kxd4 {[%clk 00:46:44]} {[%emt 00:00:47]} 59. Kc2 {[%clk 01:04:53]} {[%emt
00:00:26]} Ke4 {[%clk 00:47:06]} {[%emt 00:00:08]} 60. Kb2 {[%clk 01:04:58]}
{[%emt 00:00:25]} d4 {[%clk 00:47:28]} {[%emt 00:00:08]} 61. Kc2 {[%clk
01:05:21]} {[%emt 00:00:08]} Bc4 {[%clk 00:47:37]} {[%emt 00:00:20]} 62. Kd2
{[%clk 01:05:45]} {[%emt 00:00:06]} Kf3 {[%clk 00:48:02]} {[%emt 00:00:04]} 63.
Kc2 {[%clk 01:06:07]} {[%emt 00:00:09]} Kg3 {[%clk 00:48:27]} {[%emt 00:00:04]}
64. Kd2 {[%clk 01:06:34]} {[%emt 00:00:04]} Kxh3 {[%clk 00:48:52]} {[%emt
00:00:05]} 65. Kc2 {[%clk 01:06:56]} {[%emt 00:00:08]} Kxg4 {[%clk 00:49:15]}
{[%emt 00:00:06]} 66. Kd2 {[%clk 01:07:24]} {[%emt 00:00:03]} Kf3 {[%clk
00:49:39]} {[%emt 00:00:07]} 67. Kc2 {[%clk 01:07:46]} {[%emt 00:00:07]} g4
{[%clk 00:49:47]} {[%emt 00:00:21]} 68. Kd2 {[%clk 01:08:12]} {[%emt 00:00:04]}
h5 {[%clk 00:50:13]} {[%emt 00:00:04]} 69. Kc2 {[%clk 01:08:32]} {[%emt
00:00:10]} h4 {[%clk 00:50:37]} {[%emt 00:00:06]} 70. Kd2 {[%clk 01:09:00]}
{[%emt 00:00:03]} h3 {[%clk 00:51:02]} {[%emt 00:00:05]} 71. Kc2 {[%clk
01:09:21]} {[%emt 00:00:08]} h2 {[%clk 00:51:21]} {[%emt 00:00:12]} 72. Kd2
{[%clk 01:09:49]} {[%emt 00:00:02]} h1=N {[%clk 00:51:44]} {[%emt 00:00:07]} 73.
Kc2 {[%clk 01:10:16]} {[%emt 00:00:03]} g3 {[%clk 00:52:10]} {[%emt 00:00:05]}
74. Kd2 {[%clk 01:10:42]} {[%emt 00:00:03]} g2 {[%clk 00:52:33]} {[%emt
00:00:06]} 75. Kc2 {[%clk 01:11:09]} {[%emt 00:00:03]} g1=N {[%clk 00:52:55]}
{[%emt 00:00:08]} 76. Kd2 {[%clk 01:11:37]} {[%emt 00:00:03]} Ng3 {[%clk
00:53:09]} {[%emt 00:00:16]} 77. Kc2 {[%clk 01:12:00]} {[%emt 00:00:06]} Ke2
{[%clk 00:53:32]} {[%emt 00:00:06]} 78. Kb2 {[%clk 01:12:25]} {[%emt 00:00:06]}
Kd2 {[%clk 00:53:52]} {[%emt 00:00:08]} 79. Ka1 {[%clk 01:12:48]} {[%emt
00:00:09]} Bf1 {[%clk 00:54:07]} {[%emt 00:00:15]} 80. Kb2 {[%clk 01:13:11]}
{[%emt 00:00:07]} Nf3 {[%clk 00:54:28]} {[%emt 00:00:08]} 81. Kb1 {[%clk
01:13:37]} {[%emt 00:00:05]} Ne1 {[%clk 00:54:35]} {[%emt 00:00:23]} 82. Kb2
{[%clk 01:14:02]} {[%emt 00:00:05]} Nd3+ {[%clk 00:54:23]} {[%emt 00:00:41]} 83.
Kb1 {[%clk 01:14:28]} {[%emt 00:00:06]} Ne4 {[%clk 00:54:27]} {[%emt 00:00:24]}
84. Ka2 {[%clk 01:14:53]} {[%emt 00:00:07]} Kc2 {[%clk 00:54:43]} {[%emt
00:00:11]} 85. Ka1 {[%clk 01:15:18]} {[%emt 00:00:08]} Kb3 {[%clk 00:55:03]}
{[%emt 00:00:09]} 86. Kb1 {[%clk 01:15:43]} {[%emt 00:00:07]} Be2 {[%clk
00:55:09]} {[%emt 00:00:23]} 87. Ka1 {[%clk 01:16:07]} {[%emt 00:00:06]} Ka3
{[%clk 00:55:28]} {[%emt 00:00:09]} 88. Kb1 {[%clk 01:16:27]} {[%emt 00:00:12]}
b3 {[%clk 00:55:52]} {[%emt 00:00:04]} 89. Ka1 {[%clk 01:16:50]} {[%emt
00:00:08]} b2+ {[%clk 00:56:17]} {[%emt 00:00:04]} 90. Kb1 {[%clk 01:17:17]}
{[%emt 00:00:04]} Ndc5 {[%clk 00:56:21]} {[%emt 00:00:24]} 91. Kc2 {[%clk
01:17:42]} {[%emt 00:00:07]} d3+ {[%clk 00:56:24]} {[%emt 00:00:27]} 92. Kb1
{[%clk 01:18:03]} {[%emt 00:00:08]} d2 {[%clk 00:56:25]} {[%emt 00:00:30]} 93.
Kc2 {[%clk 01:18:26]} {[%emt 00:00:08]} d1=B+ {[%clk 00:56:51]} {[%emt
00:00:04]} 94. Kb1 {[%clk 01:18:49]} {[%emt 00:00:07]} Nd2# {[%clk 00:57:13]}
{[%emt 00:00:07]} 0-1

[Event "Latvijas 2022. gada jauniešu čempionāta fināls"]
[Site "Riga, Latvia"]
[Date "2022.06.16"]
[Round "9.24"]
[White "Podojniks, Marks Ernests"]
[Black "Fridensteins-Bridins, Atis"]
[Result "1/2-1/2"]
[TimeControl "3600+30"]
[WhiteElo "1372"]
[BlackElo "1704"]

1. e4 {[%clk 01:00:59]} e5 {[%clk 01:00:50]} {[%emt 00:00:10]} 2. Nf3 {[%clk
01:01:25]} {[%emt 00:00:04]} Nc6 {[%clk 01:01:09]} {[%emt 00:00:10]} 3. Bc4
{[%clk 01:01:49]} {[%emt 00:00:06]} Nf6 {[%clk 01:01:29]} {[%emt 00:00:11]} 4.
d3 {[%clk 01:02:12]} {[%emt 00:00:07]} Be7 {[%clk 01:00:35]} {[%emt 00:01:24]}
5. c3 {[%clk 01:02:30]} {[%emt 00:00:12]} d6 {[%clk 01:00:45]} {[%emt
00:00:20]} 6. Bb3 {[%clk 01:02:54]} {[%emt 00:00:06]} h6 {[%clk 01:00:36]}
{[%emt 00:00:39]} 7. Nbd2 {[%clk 01:03:12]} {[%emt 00:00:12]} Na5 {[%clk
01:00:14]} {[%emt 00:00:51]} 8. Bc2 {[%clk 01:03:31]} {[%emt 00:00:12]} c5
{[%clk 01:00:30]} {[%emt 00:00:13]} 9. Nf1 {[%clk 01:03:39]} {[%emt 00:00:23]}
b5 {[%clk 00:55:29]} {[%emt 00:05:31]} 10. Ng3 {[%clk 01:02:18]} {[%emt
00:01:51]} Nc6 {[%clk 00:55:31]} {[%emt 00:00:28]} 11. O-O {[%clk 01:02:07]}
{[%emt 00:00:39]} O-O {[%clk 00:55:44]} {[%emt 00:00:18]} 12. h3 {[%clk
01:02:17]} {[%emt 00:00:20]} Re8 {[%clk 00:55:15]} {[%emt 00:01:00]} 13. Re1
{[%clk 01:02:10]} {[%emt 00:00:37]} Bf8 {[%clk 00:55:33]} {[%emt 00:00:12]} 14.
Be3 {[%clk 00:57:27]} {[%emt 00:05:12]} d5 {[%clk 00:53:30]} {[%emt 00:02:34]}
15. exd5 {[%clk 00:56:22]} {[%emt 00:01:35]} Nxd5 {[%clk 00:53:34]} {[%emt
00:00:26]} 1/2-1/2

[Event "Latvijas 2022. gada jauniešu čempionāta fināls"]
[Site "Riga, Latvia"]
[Date "2022.06.16"]
[Round "9.25"]
[White "Sestakovs, Maksims"]
[Black "Steinbergs, Raivo"]
[Result "0-1"]
[TimeControl "3600+30"]
[WhiteElo "1138"]
[BlackElo "1397"]

1. b4 {[%clk 01:00:58]} {[%emt 00:00:02]} e5 {[%clk 01:00:50]} {[%emt
00:00:10]} 2. b5 {[%clk 01:01:21]} {[%emt 00:00:07]} a6 {[%clk 00:59:58]}
{[%emt 00:01:22]} 3. c4 {[%clk 01:01:28]} {[%emt 00:00:23]} axb5 {[%clk
01:00:16]} {[%emt 00:00:12]} 4. cxb5 {[%clk 01:01:50]} {[%emt 00:00:07]} d5
{[%clk 01:00:35]} {[%emt 00:00:11]} 5. Bb2 {[%clk 01:01:44]} {[%emt 00:00:35]}
Nd7 {[%clk 00:59:47]} {[%emt 00:01:19]} 6. e3 {[%clk 01:01:49]} {[%emt
00:00:24]} Ngf6 {[%clk 00:59:37]} {[%emt 00:00:40]} 7. Nf3 {[%clk 01:01:14]}
{[%emt 00:01:05]} Bd6 {[%clk 00:58:06]} {[%emt 00:02:00]} 8. Be2 {[%clk
01:01:08]} {[%emt 00:00:38]} O-O {[%clk 00:56:53]} {[%emt 00:01:43]} 9. O-O
{[%clk 01:01:36]} {[%emt 00:00:03]} c6 {[%clk 00:57:20]} {[%emt 00:00:03]} 10.
Nc3 {[%clk 01:01:43]} {[%emt 00:00:22]} e4 {[%clk 00:56:47]} {[%emt 00:01:03]}
11. Nd4 {[%clk 01:01:19]} {[%emt 00:00:54]} Ne5 {[%clk 00:56:46]} {[%emt
00:00:29]} 12. a4 {[%clk 01:00:51]} {[%emt 00:01:01]} c5 {[%clk 00:55:43]}
{[%emt 00:01:33]} 13. Nb3 {[%clk 01:00:47]} {[%emt 00:00:33]} Nd3 {[%clk
00:55:46]} {[%emt 00:00:27]} 14. Bxd3 {[%clk 01:00:43]} {[%emt 00:00:32]} exd3
{[%clk 00:56:12]} {[%emt 00:00:06]} 15. Nc1 {[%clk 00:59:32]} {[%emt 00:01:40]}
c4 {[%clk 00:56:25]} {[%emt 00:00:19]} 16. f3 {[%clk 00:59:00]} {[%emt
00:01:02]} Bc5 {[%clk 00:55:48]} {[%emt 00:01:07]} 17. Kh1 {[%clk 00:59:17]}
{[%emt 00:00:12]} Re8 {[%clk 00:55:25]} {[%emt 00:00:54]} 18. Ba3 {[%clk
00:58:53]} {[%emt 00:00:54]} Bb6 {[%clk 00:55:18]} {[%emt 00:00:34]} 19. Bb4
{[%clk 00:58:56]} {[%emt 00:00:29]} Bd7 {[%clk 00:53:57]} {[%emt 00:01:51]} 20.
N1a2 {[%clk 00:57:48]} {[%emt 00:01:38]} d4 {[%clk 00:54:03]} {[%emt 00:00:23]}
21. Ne4 {[%clk 00:56:46]} {[%emt 00:01:32]} Nxe4 {[%clk 00:52:40]} {[%emt
00:01:54]} 22. fxe4 {[%clk 00:56:59]} {[%emt 00:00:16]} dxe3 {[%clk 00:52:21]}
{[%emt 00:00:51]} 23. dxe3 {[%clk 00:57:13]} {[%emt 00:00:14]} Rxe4 {[%clk
00:50:02]} {[%emt 00:02:50]} 24. Qf3 {[%clk 00:56:50]} {[%emt 00:00:53]} f5
{[%clk 00:50:21]} {[%emt 00:00:11]} 25. Bd2 {[%clk 00:55:46]} {[%emt 00:01:32]}
Rxa4 {[%clk 00:48:34]} {[%emt 00:02:19]} 26. Nc3 {[%clk 00:56:08]} {[%emt
00:00:08]} Rxa1 {[%clk 00:48:51]} {[%emt 00:00:14]} 27. Rxa1 {[%clk 00:56:28]}
{[%emt 00:00:08]} Re8 {[%clk 00:48:50]} {[%emt 00:00:22]} 28. Qxb7 {[%clk
00:56:19]} {[%emt 00:00:49]} Bxe3 {[%clk 00:47:33]} {[%emt 00:01:48]} 29. Qd5+
{[%clk 00:56:35]} {[%emt 00:00:13]} Kh8 {[%clk 00:46:22]} {[%emt 00:01:40]} 30.
Bxe3 {[%clk 00:56:20]} {[%emt 00:00:45]} Rxe3 {[%clk 00:46:09]} {[%emt
00:00:44]} 31. Qxc4 {[%clk 00:55:19]} {[%emt 00:01:31]} d2 {[%clk 00:44:19]}
{[%emt 00:02:20]} 32. Qf1 {[%clk 00:55:10]} {[%emt 00:00:39]} h6 {[%clk
00:43:18]} {[%emt 00:01:31]} 33. Nd5 {[%clk 00:52:53]} {[%emt 00:02:48]} Bxb5
{[%clk 00:43:21]} {[%emt 00:00:27]} 34. Nxe3 {[%clk 00:52:25]} {[%emt
00:00:55]} Bxf1 {[%clk 00:43:40]} {[%emt 00:00:14]} 35. Rxf1 {[%clk 00:52:49]}
{[%emt 00:00:04]} Qd3 {[%clk 00:43:59]} {[%emt 00:00:13]} 36. Rg1 {[%clk
00:52:47]} {[%emt 00:00:31]} Qxe3 {[%clk 00:44:23]} {[%emt 00:00:07]} 37. h3
{[%clk 00:53:04]} {[%emt 00:00:12]} Qxg1+ {[%clk 00:44:40]} {[%emt 00:00:13]}
38. Kxg1 {[%emt 00:00:05]} d1=Q+ {[%emt 00:00:06]} 39. Kh2 {[%clk 00:53:14]}
{[%emt 00:00:09]} g5 {[%clk 00:44:54]} {[%emt 00:00:16]} 40. h4 {[%clk
00:53:24]} {[%emt 00:00:20]} f4 {[%clk 00:45:05]} {[%emt 00:00:19]} 41. hxg5
{[%clk 00:53:42]} {[%emt 00:00:11]} hxg5 {[%clk 00:45:29]} {[%emt 00:00:07]} 42.
Kh3 {[%clk 00:54:07]} {[%emt 00:00:04]} Qh5# {[%clk 00:45:49]} {[%emt
00:00:12]} 0-1

[Event "Latvijas 2022. gada jauniešu čempionāta fināls"]
[Site "Riga, Latvia"]
[Date "2022.06.16"]
[Round "9.26"]
[White "Freibergs, Andrejs"]
[Black "Adamovics, Aleksejs"]
[Result "0-1"]
[TimeControl "3600+30"]
[WhiteElo "1526"]
[BlackElo "1922"]

1. e4 {[%clk 01:00:59]} c5 {[%clk 01:00:54]} {[%emt 00:00:07]} 2. Nf3 {[%clk
01:01:23]} {[%emt 00:00:04]} Nc6 {[%clk 01:01:20]} {[%emt 00:00:06]} 3. d4
{[%clk 01:01:40]} {[%emt 00:00:13]} cxd4 {[%clk 01:01:44]} {[%emt 00:00:05]} 4.
Nxd4 {[%clk 01:02:05]} {[%emt 00:00:05]} Nf6 {[%clk 01:01:58]} {[%emt
00:00:16]} 5. f3 {[%clk 00:58:21]} {[%emt 00:04:14]} Qb6 {[%clk 00:53:37]}
{[%emt 00:08:51]} 6. c3 {[%clk 00:47:26]} {[%emt 00:11:26]} e6 {[%clk
00:50:09]} {[%emt 00:03:57]} 7. Qb3 {[%clk 00:45:50]} {[%emt 00:02:06]} Nxd4
{[%clk 00:48:01]} {[%emt 00:02:38]} 8. Qxb6 {[%clk 00:45:59]} {[%emt 00:00:21]}
Nxf3+ {[%clk 00:48:02]} {[%emt 00:00:29]} 9. gxf3 {[%clk 00:46:24]} {[%emt
00:00:06]} axb6 {[%clk 00:48:23]} {[%emt 00:00:09]} 10. Rg1 {[%clk 00:41:49]}
{[%emt 00:05:04]} d5 {[%clk 00:43:35]} {[%emt 00:05:18]} 11. e5 {[%clk
00:40:02]} {[%emt 00:02:18]} Nd7 {[%clk 00:43:28]} {[%emt 00:00:35]} 12. Bb5
{[%clk 00:38:05]} {[%emt 00:02:27]} Kd8 {[%clk 00:39:21]} {[%emt 00:04:36]} 13.
f4 {[%clk 00:37:21]} {[%emt 00:01:16]} g6 {[%clk 00:37:55]} {[%emt 00:01:56]}
14. b4 {[%clk 00:34:46]} {[%emt 00:03:05]} Nb8 {[%clk 00:34:56]} {[%emt
00:03:29]} 15. Be3 {[%clk 00:32:11]} {[%emt 00:03:05]} Kc7 {[%clk 00:35:13]}
{[%emt 00:00:13]} 16. a4 {[%clk 00:32:24]} {[%emt 00:00:18]} Nc6 {[%clk
00:31:27]} {[%emt 00:04:15]} 17. Na3 {[%clk 00:32:08]} {[%emt 00:00:47]} Bd7
{[%clk 00:31:39]} {[%emt 00:00:17]} 18. Rg2 {[%clk 00:24:28]} {[%emt 00:08:12]}
d4 {[%clk 00:22:56]} {[%emt 00:09:11]} 19. Bxd4 {[%clk 00:18:43]} {[%emt
00:06:15]} Nxd4 {[%clk 00:22:54]} {[%emt 00:00:33]} 20. Bxd7 {[%clk 00:19:07]}
{[%emt 00:00:07]} Nf3+ {[%clk 00:18:07]} {[%emt 00:05:16]} 21. Kf2 {[%clk
00:18:32]} {[%emt 00:01:05]} Nh4 {[%clk 00:17:51]} {[%emt 00:00:46]} 22. Rg4
{[%clk 00:18:18]} {[%emt 00:00:44]} Kxd7 {[%clk 00:17:47]} {[%emt 00:00:33]} 23.
Rxh4 {[%clk 00:18:28]} {[%emt 00:00:21]} Rxa4 {[%clk 00:17:59]} {[%emt
00:00:19]} 24. Rd1+ {[%clk 00:16:59]} {[%emt 00:01:59]} Kc6 {[%clk 00:18:00]}
{[%emt 00:00:25]} 25. Nc2 {[%clk 00:16:22]} {[%emt 00:01:10]} Ra2 {[%clk
00:15:17]} {[%emt 00:03:13]} 26. Rd2 {[%clk 00:16:28]} {[%emt 00:00:25]} Kc7
{[%clk 00:15:37]} {[%emt 00:00:07]} 27. Rh3 {[%clk 00:10:13]} {[%emt 00:06:46]}
Be7 {[%clk 00:15:30]} {[%emt 00:00:37]} 28. Rhd3 {[%clk 00:10:10]} {[%emt
00:00:34]} Rd8 {[%clk 00:15:47]} {[%emt 00:00:12]} 29. Rxd8 {[%clk 00:09:45]}
{[%emt 00:00:56]} Bxd8 {[%clk 00:16:12]} {[%emt 00:00:04]} 30. Ke2 {[%clk
00:10:09]} {[%emt 00:00:06]} g5 {[%clk 00:14:45]} {[%emt 00:01:57]} 31. Kd3
{[%clk 00:09:20]} {[%emt 00:01:19]} gxf4 {[%clk 00:14:09]} {[%emt 00:01:06]} 32.
Rf2 {[%clk 00:07:26]} {[%emt 00:02:24]} Bg5 {[%clk 00:13:19]} {[%emt 00:01:20]}
33. Rf3 {[%clk 00:07:48]} {[%emt 00:00:09]} Kd7 {[%clk 00:12:54]} {[%emt
00:00:54]} 34. h3 {[%clk 00:07:16]} {[%emt 00:01:02]} Ke7 {[%clk 00:12:51]}
{[%emt 00:00:33]} 35. Nd4 {[%clk 00:04:53]} {[%emt 00:02:53]} f6 {[%clk
00:11:29]} {[%emt 00:01:53]} 36. exf6+ {[%clk 00:04:12]} {[%emt 00:01:11]} Kxf6
{[%clk 00:11:47]} {[%emt 00:00:12]} 37. Ne2 {[%clk 00:04:33]} {[%emt 00:00:09]}
e5 {[%clk 00:11:25]} {[%emt 00:00:52]} 38. Ng3 {[%clk 00:04:55]} {[%emt
00:00:07]} Bh4 {[%clk 00:10:44]} {[%emt 00:01:10]} 39. Ne4+ {[%clk 00:05:20]}
{[%emt 00:00:07]} Ke6 {[%clk 00:11:04]} {[%emt 00:00:09]} 40. Kc4 {[%clk
00:05:21]} {[%emt 00:00:29]} Ra1 {[%clk 00:10:47]} {[%emt 00:00:47]} 41. Rd3
{[%clk 00:04:41]} {[%emt 00:01:10]} Re1 {[%clk 00:10:33]} {[%emt 00:00:44]} 42.
Nd2 {[%clk 00:04:42]} {[%emt 00:00:29]} Re3 {[%clk 00:09:31]} {[%emt 00:01:31]}
43. Nf3 {[%clk 00:04:15]} {[%emt 00:00:58]} Bf2 {[%clk 00:05:42]} {[%emt
00:04:18]} 44. Ng5+ {[%clk 00:03:16]} {[%emt 00:01:28]} Kf5 {[%clk 00:05:41]}
{[%emt 00:00:30]} 45. Nxh7 {[%clk 00:03:42]} {[%emt 00:00:05]} Rxd3 {[%clk
00:05:19]} {[%emt 00:00:51]} 46. Kxd3 {[%clk 00:04:06]} {[%emt 00:00:06]} e4+
{[%clk 00:05:42]} {[%emt 00:00:07]} 47. Ke2 {[%clk 00:04:25]} {[%emt 00:00:12]}
Bh4 {[%clk 00:06:00]} {[%emt 00:00:11]} 48. Nf8 {[%clk 00:04:32]} {[%emt
00:00:24]} f3+ {[%clk 00:05:29]} {[%emt 00:01:00]} 49. Ke3 {[%clk 00:04:53]}
{[%emt 00:00:09]} Bg5+ {[%clk 00:05:33]} {[%emt 00:00:27]} 50. Kf2 {[%clk
00:05:15]} {[%emt 00:00:08]} Bf6 {[%clk 00:05:54]} {[%emt 00:00:09]} 51. c4
{[%clk 00:05:08]} {[%emt 00:00:37]} Bd4+ {[%clk 00:06:11]} {[%emt 00:00:13]} 52.
Kg3 {[%clk 00:05:33]} {[%emt 00:00:05]} Bc3 {[%clk 00:05:56]} {[%emt 00:00:45]}
53. Kf2 {[%clk 00:05:03]} {[%emt 00:00:59]} Bxb4 {[%clk 00:06:14]} {[%emt
00:00:12]} 54. Nd7 {[%clk 00:05:28]} {[%emt 00:00:05]} Bc5+ {[%clk 00:06:20]}
{[%emt 00:00:23]} 0-1